bitfinex-derivatives/quotes_BTCF0:USTF0_20210708
["timestamp","ask_amount","ask_price","bid_price","bid_amount"]
[1625713923834,0.004,33095.0,33093.0,0.72172632]
[1625713925181,0.32452562,33094.0,33093.0,0.72172632]
[1625713925330,0.59271562,33094.0,33093.0,0.72172632]
[1625713925482,1.40346019,33094.0,33093.0,0.72172632]
[1625713926080,0.75475753,33094.0,33093.0,0.72172632]
[1625713926380,0.59272925,33094.0,33093.0,0.72172632]
[1625713926680,1.08011881,33094.0,33093.0,0.72172632]
[1625713926831,0.75557956,33094.0,33093.0,0.48115088]
[1625713926988,0.75557956,33094.0,33088.0,0.001]
[1625713927132,0.48115088,33089.0,33088.0,0.001]
[1625713927434,1.61666721,33089.0,33088.0,0.001]
[1625713927733,3.72468143,33089.0,33088.0,0.001]
[1625713928630,5.02515643,33089.0,33088.0,0.001]
[1625713928930,5.02515643,33089.0,33084.0,0.24057544]
[1625713929084,2.35326168,33085.0,33084.0,0.24057544]
[1625713929230,2.66075168,33085.0,33084.0,0.24057544]
[1625713929380,2.66075168,33085.0,33083.0,0.002]
[1625713929683,2.11237234,33084.0,33083.0,0.002]
[1625713930584,4.55462775,33084.0,33083.0,0.002]
[1625713930959,3.25210238,33084.0,33083.0,0.002]
[1625713931108,3.49267782,33084.0,33083.0,0.002]
[1625713931259,4.79524181,33084.0,33083.0,0.002]
[1625713931409,3.49267782,33084.0,33083.0,0.002]
[1625713931859,4.79539258,33084.0,33083.0,0.002]
[1625713932087,3.49267782,33084.0,33083.0,0.002]
[1625713932535,3.49267782,33084.0,33081.0,0.24057544]
[1625713932536,4.7951291,33084.0,33081.0,0.24057544]
[1625713932719,0.65237699,33082.0,33081.0,0.29757544]
[1625713932848,2.12018446,33082.0,33081.0,0.29757544]
[1625713932986,0.48932351,33082.0,33081.0,0.29757544]
[1625713933135,0.48932351,33082.0,33081.0,0.53815088]
[1625713933286,1.14190044,33082.0,33081.0,0.48115088]
[1625713933737,2.120404,33082.0,33081.0,0.48115088]
[1625713934336,2.410294,33082.0,33081.0,0.48115088]
[1625713935252,3.55174357,33082.0,33081.0,0.48115088]
[1625713935409,4.85514013,33082.0,33077.0,0.24057544]
[1625713936140,2.11821262,33078.0,33077.0,0.24057544]
[1625713936440,2.11821262,33078.0,33077.0,0.29757544]
[1625713936596,2.11821262,33078.0,33077.0,0.24057544]
[1625713936745,1.14063868,33078.0,33077.0,0.24057544]
[1625713936898,2.11828623,33078.0,33077.0,0.24057544]
[1625713937191,2.35886167,33078.0,33077.0,0.24057544]
[1625713937415,3.49989843,33078.0,33077.0,0.24057544]
[1625713937715,2.35886167,33078.0,33077.0,0.24057544]
[1625713940271,3.49984043,33078.0,33077.0,0.24057544]
[1625713942376,2.35886167,33078.0,33077.0,0.24057544]
[1625713942677,3.49977471,33078.0,33077.0,0.24057544]
[1625713945831,3.49977471,33078.0,33076.0,0.001]
[1625713945983,2.1202035,33077.0,33076.0,0.001]
[1625713946730,3.26160452,33077.0,33076.0,0.001]
[1625713946956,2.1202035,33077.0,33076.0,0.001]
[1625713947257,3.2616206,33077.0,33076.0,0.001]
[1625713947406,3.2616206,33077.0,33074.0,0.24057544]
[1625713947706,0.65233669,33075.0,33074.0,0.24057544]
[1625713947857,1.48347997,33075.0,33074.0,0.24057544]
[1625713948085,2.46182961,33075.0,33074.0,0.24057544]
[1625713948385,3.60524825,33075.0,33074.0,0.24057544]
[1625713950259,3.60524825,33075.0,33074.0,0.24494347]
[1625713950411,4.91094594,33075.0,33074.0,0.24494347]
[1625713950894,5.00164594,33075.0,33072.0,0.001]
[1625713951163,4.56635036,33073.0,33067.0,0.002]
[1625713951312,0.48115088,33068.0,33067.0,0.002]
[1625713951462,1.84858397,33068.0,33067.0,0.002]
[1625713951614,2.82676902,33068.0,33067.0,0.002]
[1625713952062,2.82676902,33068.0,33061.0,0.58849464]
[1625713952211,2.82676902,33068.0,33061.0,0.53149464]
[1625713952361,3.96738852,33068.0,33061.0,0.53149464]
[1625713952738,1.1393678,33062.0,33057.0,0.53156511]
[1625713952888,0.48792346,33060.0,33055.0,0.53113059]
[1625713953038,0.78213346,33060.0,33055.0,0.53113059]
[1625713953201,0.16266025,33059.0,33055.0,0.057]
[1625713953341,0.24057544,33057.0,33056.0,0.24057544]
[1625713953490,0.18357544,33057.0,33056.0,0.77173124]
[1625713953939,0.24057544,33057.0,33056.0,1.12581579]
[1625713954101,0.46245544,33057.0,33056.0,1.12581579]
[1625713954257,0.46245544,33057.0,33056.0,0.35410387]
[1625713954428,0.46245544,33057.0,33018.0,3.54090985]
[1625713954541,2.57103982,33057.0,33048.0,0.53124023]
[1625713954840,0.40545544,33057.0,33046.0,0.9839]
[1625713955141,0.18357544,33057.0,10541.0,0.14]
[1625713955291,0.18357544,33057.0,10301.0,0.3]
[1625713955292,0.24057544,33055.0,33051.0,0.24057544]
[1625713955740,0.24057544,33055.0,33052.0,0.53064214]
[1625713956043,0.24057544,33055.0,33051.0,0.77122561]
[1625713956339,0.24057544,33055.0,33051.0,0.24057544]
[1625713957091,0.057,33054.0,33051.0,0.41744895]
[1625713957240,0.24057544,33053.0,33051.0,0.41744895]
[1625713957390,0.24057544,33053.0,33051.0,0.24057544]
[1625713958086,0.24057544,33053.0,33052.0,0.88428518]
[1625713958376,0.24057544,33053.0,33051.0,0.77117236]
[1625713958681,0.24057544,33053.0,33051.0,0.24057544]
[1625713958894,0.24057544,33053.0,33052.0,0.5305696]
[1625713959193,0.24057544,33053.0,33051.0,0.24057544]
[1625713959495,0.24057544,33053.0,33052.0,0.17686908]
[1625713959793,0.24057544,33053.0,33051.0,0.24057544]
[1625713960326,0.24057544,33053.0,33052.0,0.53022753]
[1625713960618,0.24057544,33053.0,33052.0,0.27813]
[1625713960769,0.001,33057.0,33052.0,0.27813]
[1625713961219,0.001,33057.0,33055.0,0.53018786]
[1625713961369,0.001,33057.0,33056.0,0.48115088]
[1625713963700,0.001,33057.0,33056.0,0.65786348]
[1625713963846,0.001,33057.0,33056.0,1.01128127]
[1625713964147,0.001,33057.0,33056.0,0.48115088]
[1625713964897,0.001,33057.0,33056.0,0.657807]
[1625713965497,0.001,33057.0,33056.0,1.01111627]
[1625713965647,0.001,33057.0,33056.0,0.48115088]
[1625713966249,0.001,33057.0,33056.0,0.65780649]
[1625713966697,0.001,33057.0,33056.0,1.01108685]
[1625713966850,0.001,33057.0,33056.0,1.51108685]
[1625713966999,0.001,33057.0,33056.0,1.86434857]
[1625713967149,0.001,33057.0,33056.0,1.51106821]
[1625713967299,0.001,33057.0,33056.0,1.75164365]
[1625713967751,0.001,33057.0,33056.0,2.45817514]
[1625713968201,0.001,33057.0,33056.0,1.95817514]
[1625713968350,0.001,33057.0,33056.0,3.01795685]
[1625713968501,0.001,33057.0,33056.0,3.51795685]
[1625713968805,0.001,33057.0,33056.0,3.60745685]
[1625713969418,0.003,33067.0,33056.0,3.51795685]
[1625713969554,0.48656273,33069.0,33056.0,3.51795685]
[1625713969703,0.48686016,33071.0,33061.0,0.52988843]
[1625713969853,0.49102997,33072.0,33062.0,1.0298663]
[1625713970153,0.1663974,33072.0,33063.0,0.52986302]
[1625713970304,0.1663974,33072.0,33064.0,0.5]
[1625713970456,0.004,33072.0,33064.0,0.67664254]
[1625713970680,0.004,33072.0,33066.0,0.17663358]
[1625713970829,0.004,33072.0,33067.0,0.5]
[1625713971279,0.003,33068.0,33067.0,0.5]
[1625713971433,0.003,33068.0,33067.0,1.7516055]
[1625713971655,0.003,33068.0,33067.0,2.45803727]
[1625713971956,0.24557544,33078.0,33072.0,3.6763]
[1625713972106,0.24557544,33078.0,33073.0,0.5]
[1625713972257,0.97621712,33082.0,33073.0,0.5]
[1625713972407,1.21739228,33083.0,33073.0,0.5]
[1625713972707,1.21739228,33083.0,33072.0,3.6763]
[1625713972856,1.21739228,33083.0,33073.0,0.5]
[1625713973159,1.139721,33085.0,33079.0,0.0043246]
[1625713973458,1.68510308,33095.0,33079.0,0.0043246]
[1625713973459,1.14159469,33091.0,33084.0,0.96230176]
[1625713973759,1.19903002,33092.0,33084.0,0.96230176]
[1625713973909,1.14121649,33090.0,33084.0,0.96230176]
[1625713974284,1.19821649,33090.0,33084.0,0.96230176]
[1625713974961,1.14121649,33090.0,33084.0,0.96230176]
[1625713975334,0.057,33089.0,33084.0,0.96230176]
[1625713975485,0.057,33089.0,33088.0,0.24057544]
[1625713975634,1.14121649,33090.0,33088.0,0.24057544]
[1625713977060,1.14083945,33091.0,33088.0,0.24057544]
[1625713977361,0.003,33090.0,33088.0,0.24057544]
[1625713981489,0.003,33090.0,33089.0,0.24057544]
[1625713982391,0.003,33090.0,33089.0,0.74057544]
[1625713982543,0.003,33090.0,33089.0,0.24057544]
[1625713982689,0.003,33090.0,33089.0,0.74057544]
[1625713984193,1.30750486,33101.0,33089.0,0.74057544]
[1625713984367,1.30906625,33104.0,33089.0,0.74057544]
[1625713984645,1.31002193,33105.0,33089.0,0.74057544]
[1625713985319,1.30910573,33106.0,33089.0,0.74057544]
[1625713985469,1.30910573,33106.0,33099.0,0.72172632]
[1625713985620,1.30910573,33106.0,33099.0,0.98341632]
[1625713985771,1.31035834,33109.0,33099.0,1.48341632]
[1625713985923,0.24057544,33110.0,33099.0,1.48341632]
[1625713985924,1.3101295,33108.0,33099.0,1.48341632]
[1625713986070,1.3101295,33108.0,33099.0,5.16701632]
[1625713986220,0.24057544,33110.0,33099.0,5.16701632]
[1625713986221,1.31047825,33109.0,33099.0,5.16701632]
[1625713986370,0.003,33103.0,33099.0,5.16701632]
[1625713987271,0.003,33103.0,33099.0,5.25811632]
[1625713987421,0.003,33103.0,33102.0,0.24057544]
[1625713987570,0.003,33103.0,33102.0,0.74057544]
[1625713988021,0.003,33103.0,33102.0,0.24057544]
[1625713991718,0.003,33103.0,33102.0,0.74057544]
[1625713991863,0.003,33103.0,33102.0,0.24057544]
[1625713992646,0.0001,33113.0,33102.0,0.48027544]
[1625713993069,0.0001,33113.0,33103.0,0.5]
[1625713993503,0.0001,33113.0,33112.0,0.72172632]
[1625713993656,0.0001,33113.0,33112.0,1.02574632]
[1625713993955,0.0001,33113.0,33112.0,1.52574632]
[1625713994253,0.0001,33113.0,33112.0,1.02574632]
[1625713995456,0.0001,33113.0,33112.0,1.52574632]
[1625713999814,0.0001,33113.0,33112.0,1.61634632]
[1625714002216,0.0001,33113.0,33112.0,1.52574632]
[1625714005145,0.0001,33113.0,33112.0,1.22172632]
[1625714005594,0.04293,33118.0,33112.0,1.22172632]
[1625714006954,0.04293,33118.0,33112.0,0.72172632]
[1625714007699,0.04293,33118.0,33117.0,0.48115088]
[1625714008179,0.04293,33118.0,33112.0,0.48115088]
[1625714008327,0.04293,33118.0,33112.0,0.24057544]
[1625714009347,0.04393,33118.0,33112.0,0.24057544]
[1625714009645,0.48115088,33113.0,33112.0,0.24057544]
[1625714011628,0.48115088,33113.0,33112.0,0.74057544]
[1625714011754,0.48115088,33113.0,33112.0,0.98115088]
[1625714011902,0.001,33118.0,33112.0,0.98115088]
[1625714012059,0.001,33118.0,33112.0,1.24990088]
[1625714013705,0.001,33118.0,33117.0,0.48115088]
[1625714013852,0.001,33118.0,33117.0,0.98115088]
[1625714018211,0.001,33118.0,33117.0,1.32285088]
[1625714018365,0.001,33123.0,33117.0,1.32285088]
[1625714018807,0.001,33123.0,33118.0,0.01]
[1625714019407,0.001,33123.0,33118.0,0.51]
[1625714019559,0.001,33123.0,33118.0,0.6331]
[1625714019709,0.002,33128.0,33122.0,0.48115088]
[1625714019856,0.002,33128.0,33123.0,0.5]
[1625714020907,0.002,33128.0,33123.0,0.6216]
[1625714021524,0.002,33128.0,33123.0,0.5]
[1625714021816,0.002,33128.0,33127.0,0.48115088]
[1625714021960,0.002,33128.0,33127.0,0.98115088]
[1625714024437,0.002,33128.0,33127.0,4.97255088]
[1625714024587,0.002,33128.0,33127.0,5.06195088]
[1625714025413,0.002,33128.0,33127.0,4.97255088]
[1625714027364,0.001,33133.0,33127.0,4.97255088]
[1625714027813,0.001,33133.0,33132.0,0.48115088]
[1625714027963,0.001,33133.0,33132.0,0.98115088]
[1625714030440,0.001,33133.0,33132.0,0.48115088]
[1625714033143,0.33403,33133.0,33132.0,0.48115088]
[1625714035470,0.33403,33133.0,33127.0,0.48115088]
[1625714035630,0.33403,33133.0,33126.0,0.001]
[1625714035778,0.72172632,33127.0,33126.0,0.001]
[1625714036371,0.72172632,33127.0,33126.0,0.002]
[1625714040800,0.72172632,33127.0,33121.0,0.003]
[1625714040952,1.37447579,33127.0,33121.0,0.003]
[1625714041407,0.08162887,33122.0,33121.0,0.003]
[1625714041551,0.34049887,33122.0,33121.0,0.003]
[1625714041851,0.82164975,33122.0,33121.0,0.003]
[1625714042227,0.74002088,33122.0,33121.0,0.003]
[1625714042377,0.74002088,33122.0,33120.0,0.003]
[1625714042677,0.08159958,33121.0,33120.0,0.003]
[1625714043653,0.74002088,33122.0,33120.0,0.003]
[1625714043654,1.3924346,33122.0,33120.0,0.003]
[1625714044257,0.5628512,33122.0,33120.0,0.003]
[1625714044555,0.48115088,33122.0,33120.0,0.003]
[1625714045303,0.48115088,33122.0,33118.0,0.24157544]
[1625714045905,0.48115088,33122.0,33120.0,0.24057544]
[1625714047629,0.001,33126.0,33120.0,0.24057544]
[1625714047930,0.001,33126.0,33125.0,0.24057544]
[1625714048100,0.001,33126.0,33125.0,0.57509544]
[1625714048537,0.001,33126.0,33125.0,1.07509544]
[1625714049285,0.001,33126.0,33125.0,1.16301302]
[1625714049957,0.001,33126.0,33125.0,1.40358846]
[1625714050557,0.001,33126.0,33125.0,1.31567088]
[1625714051009,0.001,33126.0,33125.0,3.07404086]
[1625714051462,0.001,33126.0,33125.0,4.30537901]
[1625714052210,0.001,33126.0,33125.0,5.71249843]
[1625714055140,0.001,33126.0,33125.0,4.30537901]
[1625714055440,0.001,33126.0,33125.0,3.97085901]
[1625714056416,0.001,33126.0,33125.0,2.73952086]
[1625714057470,0.001,33130.0,33125.0,3.97129098]
[1625714057619,0.001,33130.0,33128.0,0.70384086]
[1625714057770,0.001,33130.0,33129.0,0.5]
[1625714057921,0.001,33130.0,33129.0,1.98233495]
[1625714058221,0.001,33130.0,33129.0,3.03808469]
[1625714058671,0.001,33130.0,33129.0,4.26975686]
[1625714059272,0.004,33145.0,33129.0,4.26975686]
[1625714059871,0.004,33145.0,33137.0,0.08796219]
[1625714060020,0.004,33145.0,33144.0,0.96230176]
[1625714060170,0.004,33145.0,33144.0,1.79945176]
[1625714060474,0.08283626,33150.0,33144.0,1.79945176]
[1625714061071,0.08283626,33150.0,33144.0,1.29945176]
[1625714061222,0.08283626,33150.0,33145.0,0.5]
[1625714061672,0.08279682,33151.0,33145.0,0.5]
[1625714061975,0.08279682,33151.0,33150.0,0.48115088]
[1625714062273,0.0828147,33152.0,33150.0,0.48115088]
[1625714063024,0.0828138,33151.0,33150.0,0.48115088]
[1625714063475,0.08282652,33152.0,33150.0,0.48115088]
[1625714063625,0.49620733,33153.0,33150.0,0.48115088]
[1625714063774,0.08286331,33154.0,33150.0,0.98115088]
[1625714063924,0.08286331,33154.0,33153.0,0.24057544]
[1625714064075,0.49635286,33155.0,33153.0,0.74592088]
[1625714064076,0.08288904,33155.0,33153.0,0.74592088]
[1625714065277,0.08286697,33154.0,33153.0,0.74592088]
[1625714065427,0.08286697,33154.0,33153.0,0.48115088]
[1625714066853,0.082854,33155.0,33153.0,0.48115088]
[1625714067304,0.082854,33155.0,33153.0,0.98115088]
[1625714067602,0.001,33156.0,33153.0,0.48115088]
[1625714067603,0.08390712,33156.0,33153.0,0.48115088]
[1625714067903,0.08390712,33156.0,33153.0,0.98115088]
[1625714068052,0.08390712,33156.0,33155.0,0.24057544]
[1625714069404,0.49777243,33156.0,33155.0,0.24057544]
[1625714069629,0.001,33156.0,33155.0,0.24057544]
[1625714069929,0.08391172,33156.0,33155.0,0.24057544]
[1625714070228,0.001,33156.0,33155.0,0.24057544]
[1625714071205,1.16062447,33156.0,33155.0,0.24057544]
[1625714071355,0.49800557,33156.0,33155.0,0.24057544]
[1625714071883,0.001,33156.0,33155.0,0.24057544]
[1625714072182,1.16016699,33156.0,33155.0,0.24057544]
[1625714073681,0.4978095,33156.0,33155.0,0.24057544]
[1625714074281,1.16027649,33156.0,33155.0,0.24057544]
[1625714074582,0.4978095,33156.0,33155.0,0.24057544]
[1625714075335,0.4968095,33156.0,33155.0,0.24057544]
[1625714076536,1.15936037,33157.0,33155.0,0.24057544]
[1625714076687,0.49678847,33156.0,33155.0,0.24057544]
[1625714077443,1.15930038,33157.0,33155.0,0.24057544]
[1625714078191,0.49658542,33156.0,33155.0,0.24057544]
[1625714078942,0.0829228,33156.0,33155.0,0.24057544]
[1625714080594,1.15847268,33157.0,33155.0,0.24057544]
[1625714081346,2.14920906,33156.0,33155.0,0.24057544]
[1625714081496,2.40675906,33156.0,33154.0,0.001]
[1625714081797,2.1485344,33155.0,33154.0,0.001]
[1625714082097,2.62968528,33155.0,33154.0,0.001]
[1625714082849,1.63811757,33155.0,33154.0,0.001]
[1625714083000,0.56401286,33155.0,33154.0,0.001]
[1625714083149,0.62101286,33155.0,33154.0,0.001]
[1625714083300,0.53815088,33155.0,33154.0,0.001]
[1625714083451,0.057,33155.0,33154.0,0.001]
[1625714084054,0.057,33155.0,33154.0,0.48215088]
[1625714087284,0.057,33155.0,33154.0,0.48115088]
[1625714088259,0.13982197,33157.0,33154.0,0.48115088]
[1625714088411,0.13982197,33157.0,33154.0,0.80894088]
[1625714088862,0.057,33157.0,33154.0,0.80894088]
[1625714089314,0.49734218,33160.0,33154.0,0.80894088]
[1625714089315,0.08387712,33160.0,33154.0,0.80894088]
[1625714089629,0.058,33160.0,33154.0,0.80894088]
[1625714090225,0.058,33160.0,33159.0,0.48115088]
[1625714094869,0.001,33160.0,33159.0,0.48115088]
[1625714095920,1.15819247,33160.0,33159.0,0.48115088]
[1625714096072,1.21519247,33160.0,33159.0,0.48115088]
[1625714096220,1.45576791,33160.0,33159.0,0.48115088]
[1625714096371,1.45476791,33160.0,33159.0,0.48115088]
[1625714097121,2.44675251,33160.0,33159.0,0.48115088]
[1625714097421,1.45476791,33160.0,33159.0,0.48115088]
[1625714098096,2.44689109,33160.0,33159.0,0.48115088]
[1625714098849,1.45476791,33160.0,33159.0,0.48115088]
[1625714099073,2.44714386,33160.0,33159.0,0.48115088]
[1625714101794,3.60270109,33160.0,33158.0,0.001]
[1625714102000,3.30154856,33159.0,33158.0,0.001]
[1625714102148,3.35854856,33159.0,33158.0,0.001]
[1625714102300,3.599124,33159.0,33158.0,0.001]
[1625714102524,4.92318273,33159.0,33154.0,0.24057544]
[1625714102825,2.15248429,33155.0,33154.0,0.24057544]
[1625714102975,2.20948429,33155.0,33153.0,0.002]
[1625714103428,4.63048034,33154.0,33153.0,0.002]
[1625714103576,3.58396682,33154.0,33153.0,0.002]
[1625714103876,4.90960455,33154.0,33153.0,0.002]
[1625714104177,4.90960455,33154.0,33147.0,7.544e-05]
[1625714104327,2.63531811,33148.0,33141.0,0.24057544]
[1625714104477,0.057,33147.0,33141.0,0.24057544]
[1625714104629,0.41421773,33143.0,33141.0,0.24057544]
[1625714104779,0.057,33142.0,33141.0,0.24057544]
[1625714104930,0.057,33142.0,33138.0,0.005]
[1625714105079,0.55360996,33142.0,33138.0,0.005]
[1625714105379,0.33092324,33139.0,33136.0,0.004]
[1625714105529,0.057,33138.0,33136.0,0.004]
[1625714105678,0.13984834,33138.0,33136.0,0.004]
[1625714105983,0.08291935,33137.0,33136.0,0.004]
[1625714106280,0.89521913,33137.0,33136.0,0.004]
[1625714106429,1.36578769,33137.0,33136.0,0.004]
[1625714106732,1.69638978,33137.0,33136.0,0.004]
[1625714106880,1.69638978,33137.0,33129.0,0.39978284]
[1625714107029,1.69638978,33137.0,33129.0,0.92937288]
[1625714107179,1.69638978,33137.0,33126.0,1.23568966]
[1625714107180,0.49615612,33135.0,33128.0,0.7701783]
[1625714107328,0.057,33134.0,33128.0,0.7701783]
[1625714107779,0.49652786,33133.0,33128.0,0.7701783]
[1625714107929,0.057,33132.0,33129.0,0.53012803]
[1625714108079,0.34691,33132.0,33129.0,0.53012803]
[1625714108228,0.34691,33132.0,33128.0,0.24057544]
[1625714108229,0.34691,33132.0,33128.0,0.77070604]
[1625714108378,0.48115088,33129.0,33128.0,0.24057544]
[1625714108531,0.53815088,33129.0,33128.0,0.24057544]
[1625714108680,0.53815088,33129.0,33128.0,0.77048699]
[1625714108917,0.53815088,33129.0,33128.0,0.24057544]
[1625714109879,0.53815088,33129.0,33128.0,0.77069222]
[1625714110180,0.53815088,33129.0,33128.0,1.83088645]
[1625714110629,0.53815088,33129.0,33128.0,3.06771291]
[1625714112581,0.48115088,33129.0,33128.0,3.06771291]
[1625714112733,0.48115088,33129.0,33128.0,4.48094741]
[1625714113033,0.48115088,33129.0,33128.0,4.98094741]
[1625714113187,0.48115088,33129.0,33128.0,6.58314232]
[1625714113638,5.088e-05,33129.0,33128.0,6.90797232]
[1625714113784,0.48115088,33137.0,33128.0,6.90797232]
[1625714113934,0.48115088,33137.0,33136.0,4.23834633]
[1625714114085,0.48115088,33137.0,33136.0,8.77813633]
[1625714114384,0.48115088,33137.0,33136.0,9.01871177]
[1625714114535,0.24057544,33137.0,33136.0,9.01871177]
[1625714114835,0.24057544,33143.0,33136.0,9.01871177]
[1625714114985,0.24057544,33146.0,33136.0,10.60810353]
[1625714115135,0.24057544,33146.0,33144.0,0.52978715]
[1625714115285,0.49878375,33149.0,33145.0,0.002]
[1625714115736,0.49908628,33150.0,33146.0,0.52978285]
[1625714116336,0.49908628,33150.0,33149.0,0.48115088]
[1625714116636,0.73986339,33151.0,33149.0,0.48115088]
[1625714116786,0.49928795,33151.0,33149.0,0.48115088]
[1625714116946,0.49945675,33152.0,33149.0,0.48115088]
[1625714117246,0.4997302,33154.0,33149.0,1.01099412]
[1625714117388,0.4997302,33154.0,33150.0,0.52984068]
[1625714117689,0.5567302,33154.0,33150.0,0.52984068]
[1625714117839,0.4997302,33154.0,33150.0,0.52984068]
[1625714118140,0.4997302,33154.0,33151.0,0.52993784]
[1625714118290,0.005,33152.0,33151.0,0.78914784]
[1625714118441,0.0948,33152.0,33151.0,1.28914784]
[1625714118591,0.005,33152.0,33151.0,1.28914784]
[1625714119039,0.005,33152.0,33151.0,0.78914784]
[1625714119190,0.005,33152.0,33151.0,1.8488787]
[1625714119640,0.005,33152.0,33151.0,3.58522859]
[1625714120690,0.005,33152.0,33151.0,3.67492859]
[1625714121294,0.005,33152.0,33151.0,4.99775601]
[1625714122044,0.005,33152.0,33151.0,4.49775601]
[1625714122344,0.005,33152.0,33151.0,4.99775601]
[1625714122649,0.005,33152.0,33151.0,3.58522859]
[1625714122963,0.005,33152.0,33151.0,4.99738673]
[1625714123394,0.005,33152.0,33151.0,4.46744889]
[1625714123694,0.005,33152.0,33151.0,4.99695262]
[1625714127295,0.001,33155.0,33151.0,4.99695262]
[1625714127447,0.001,33155.0,33154.0,4.23332058]
[1625714127596,0.001,33155.0,33154.0,4.73332058]
[1625714128198,0.001,33155.0,33154.0,9.55712058]
[1625714128423,0.001,33155.0,33154.0,10.03827146]
[1625714128572,0.001,33155.0,33154.0,10.12747146]
[1625714129923,0.001,33155.0,33154.0,11.71396222]
[1625714130153,0.001,33155.0,33154.0,10.12747146]
[1625714130448,0.001,33155.0,33154.0,11.71398403]
[1625714130899,0.14256003,33169.0,33154.0,10.12747146]
[1625714131049,0.14256003,33169.0,33162.0,0.52863779]
[1625714131198,0.14256003,33169.0,33163.0,0.5]
[1625714132173,0.14256003,33169.0,33163.0,0.5913]
[1625714132478,0.14256003,33169.0,33168.0,0.72172632]
[1625714133376,0.50124005,33169.0,33168.0,0.72172632]
[1625714134127,0.5582831,33170.0,33168.0,0.72172632]
[1625714134727,0.057,33170.0,33168.0,0.72172632]
[1625714137582,0.24057544,33171.0,33168.0,0.72172632]
[1625714138181,0.24057544,33171.0,33170.0,4.1642]
[1625714138331,0.24057544,33171.0,33170.0,4.4337]
[1625714140808,0.058,33174.0,33170.0,4.5234]
[1625714140960,0.001,33174.0,33170.0,5.0234]
[1625714141108,0.50161001,33177.0,33170.0,5.0234]
[1625714141258,1.33734812,33182.0,33170.0,5.0234]
[1625714141259,0.50242564,33182.0,33170.0,5.55060399]
[1625714141419,0.50242564,33182.0,33170.0,6.78065473]
[1625714141561,0.003,33184.0,33173.0,0.5271646]
[1625714141711,1.40611124,33188.0,33175.0,0.52708896]
[1625714141861,1.33211124,33188.0,33176.0,0.5]
[1625714142013,0.50311124,33188.0,33176.0,0.5]
[1625714142165,1.00622876,33190.0,33176.0,0.5]
[1625714142166,0.71334,33190.0,33176.0,0.5]
[1625714142313,0.002,33179.0,33176.0,0.5]
[1625714142463,1.1741027,33193.0,33176.0,0.5]
[1625714142614,1.1741027,33193.0,33192.0,0.48115088]
[1625714142762,0.30257544,33194.0,33192.0,5.16876088]
[1625714143362,0.30257544,33194.0,33192.0,0.70216088]
[1625714143662,0.30257544,33194.0,33192.0,0.46158544]
[1625714143813,0.30257544,33194.0,33192.0,0.24057544]
[1625714145315,0.24057544,33194.0,33192.0,0.24057544]
[1625714145465,0.24057544,33198.0,33193.0,0.5]
[1625714145689,0.057,33197.0,33193.0,0.72064]
[1625714145988,0.24057544,33198.0,33193.0,0.72064]
[1625714146589,0.24057544,33198.0,33197.0,0.24057544]
[1625714146739,0.24057544,33204.0,33197.0,0.74057544]
[1625714147339,0.057,33203.0,33197.0,0.74057544]
[1625714147640,0.057,33203.0,33197.0,0.24057544]
[1625714147789,0.057,33203.0,33198.0,0.0895]
[1625714147939,0.057,33203.0,33197.0,0.24057544]
[1625714148467,0.001,33200.0,33197.0,0.74057544]
[1625714148615,0.001,33200.0,33199.0,0.24057544]
[1625714148916,0.001,33200.0,33199.0,0.74057544]
[1625714149216,0.001,33200.0,33199.0,0.24057544]
[1625714151547,0.001,33200.0,33199.0,0.55155544]
[1625714153499,0.001,33200.0,33199.0,1.05155544]
[1625714153796,0.001,33200.0,33199.0,0.55155544]
[1625714154772,0.001,33200.0,33199.0,1.05155544]
[1625714156423,0.001,33200.0,33199.0,0.55155544]
[1625714157028,0.001,33200.0,33199.0,1.05155544]
[1625714157325,0.29857544,33206.0,33199.0,1.05255544]
[1625714157626,0.29857544,33206.0,33203.0,4.0596]
[1625714157777,0.24157544,33206.0,33203.0,4.0596]
[1625714158676,0.24157544,33206.0,33205.0,0.48115088]
[1625714160852,0.29857544,33206.0,33205.0,0.48115088]
[1625714164532,0.29857544,33206.0,33203.0,4.0596]
[1625714164680,0.48115088,33204.0,33199.0,0.001]
[1625714164835,0.057,33203.0,33199.0,0.001]
[1625714166186,0.057,33203.0,33188.0,0.24057544]
[1625714166349,0.057,33203.0,33195.0,0.003]
[1625714166646,0.72172632,33196.0,33195.0,0.003]
[1625714166784,0.72172632,33196.0,33190.0,0.004]
[1625714166785,1.01206632,33196.0,33190.0,0.004]
[1625714168744,0.48115088,33191.0,33190.0,0.004]
[1625714168894,0.53815088,33191.0,33190.0,0.004]
[1625714169344,0.53815088,33191.0,33189.0,0.004]
[1625714170696,0.53815088,33191.0,33190.0,4.1366]
[1625714170848,0.53815088,33191.0,33190.0,4.43635]
[1625714173851,0.53815088,33191.0,33190.0,4.93635]
[1625714174152,0.48115088,33191.0,33190.0,4.93635]
[1625714174452,0.24057544,33196.0,33190.0,4.93635]
[1625714174602,0.24057544,33196.0,33191.0,0.091]
[1625714174753,0.24057544,33196.0,33195.0,0.48115088]
[1625714175053,0.24057544,33196.0,33195.0,0.98115088]
[1625714175356,0.24057544,33196.0,33195.0,1.07115088]
[1625714175505,0.24057544,33196.0,33195.0,0.48115088]
[1625714176712,0.24057544,33196.0,33195.0,0.98115088]
[1625714176858,0.24057544,33196.0,33195.0,1.07215088]
[1625714177754,0.24057544,33196.0,33195.0,2.07215088]
[1625714178211,0.24057544,33196.0,33195.0,1.98115088]
[1625714178358,0.24157544,33196.0,33195.0,1.48115088]
[1625714181889,0.29857544,33196.0,33195.0,1.48115088]
[1625714182789,0.80389088,33196.0,33192.0,1.01]
[1625714182980,0.80389088,33196.0,33192.0,0.01]
[1625714183089,0.80389088,33196.0,33190.0,4.1366]
[1625714184004,0.80389088,33196.0,33190.0,5.1366]
[1625714184302,0.80389088,33196.0,33190.0,4.1366]
[1625714184740,0.24057544,33191.0,33190.0,4.1366]
[1625714184889,0.29757544,33191.0,33190.0,5.1366]
[1625714185492,0.29757544,33191.0,33190.0,4.1366]
[1625714186093,0.29757544,33191.0,33190.0,5.1366]
[1625714186542,0.29757544,33191.0,33190.0,4.1366]